[Event "Titled Tuesday Blitz August 15 Late 2023"]
[White "Cooklev, Steven"]
[Black "Kula, Robert"]
[WhiteFideId "2050552"]
[BlackFideId "1101218"]
[WhiteElo "2418"]
[BlackElo "2270"]
[Result "1-0"]
[Round "7"]
[TimeControl "180+1"]
[Date "2023.08.15"]
[WhiteClock "0:00:06"]
[BlackClock "0:00:00"]
[Board "115"]

1. e4 {[%clk 0:03:00]}  e5 {[%clk 0:02:58]} 2. Bc4 {[%clk 0:03:00]}  Nf6 {[%clk 0:02:51]} 3. d3 {[%clk 0:03:00]}  Be7 {[%clk 0:02:50]} 4. f4 {[%clk 0:02:59]}  d6 {[%clk 0:02:49]} 5. Nf3 {[%clk 0:02:58]}  exf4 {[%clk 0:02:48]} 6. Bxf4 {[%clk 0:02:53]}  O-O {[%clk 0:02:49]} 7. Nc3 {[%clk 0:02:51]}  Be6 {[%clk 0:02:49]} 8. Bb3 {[%clk 0:02:41]}  Bxb3 {[%clk 0:02:48]} 9. axb3 {[%clk 0:02:42]}  Nc6 {[%clk 0:02:47]} 10. O-O {[%clk 0:02:41]}  a6 {[%clk 0:02:42]} 11. Qd2 {[%clk 0:02:28]}  d5 {[%clk 0:01:49]} 12. e5 {[%clk 0:02:28]}  Nh5 {[%clk 0:01:39]} 13. d4 {[%clk 0:02:06]}  Nxf4 {[%clk 0:01:26]} 14. Qxf4 {[%clk 0:02:07]}  Qd7 {[%clk 0:01:25]} 15. Rae1 {[%clk 0:01:57]}  Nd8 {[%clk 0:01:25]} 16. Ne2 {[%clk 0:01:45]}  Ne6 {[%clk 0:01:25]} 17. Qg4 {[%clk 0:01:37]}  c5 {[%clk 0:01:21]} 18. Nf4 {[%clk 0:01:31]}  Kh8 {[%clk 0:00:59]} 19. Nh5 {[%clk 0:01:12]}  Qc6 {[%clk 0:00:46]} 20. c3 {[%clk 0:00:52]}  cxd4 {[%clk 0:00:42]} 21. Nxd4 {[%clk 0:00:52]}  Bc5 {[%clk 0:00:38]} 22. Kh1 {[%clk 0:00:47]}  Bxd4 {[%clk 0:00:37]} 23. cxd4 {[%clk 0:00:48]}  Rac8 {[%clk 0:00:35]} 24. Re3 {[%clk 0:00:35]}  Qb5 {[%clk 0:00:29]} 25. Ref3 {[%clk 0:00:32]}  Qd7 {[%clk 0:00:26]} 26. Rh3 {[%clk 0:00:21]}  Qe7 {[%clk 0:00:20]} 27. Nf6 {[%clk 0:00:16]}  gxf6 {[%clk 0:00:16]} 28. exf6 {[%clk 0:00:15]}  Qxf6 {[%clk 0:00:15]} 29. Rhf3 {[%clk 0:00:05]}  Qg6 {[%clk 0:00:15]} 30. Qh4 {[%clk 0:00:03]}  Nxd4 {[%clk 0:00:13]} 31. Qxd4+ {[%clk 0:00:03]}  Kg8 {[%clk 0:00:13]} 32. Rg3 {[%clk 0:00:03]}  Rc2 {[%clk 0:00:08]} 33. Rxg6+ {[%clk 0:00:03]}  hxg6 {[%clk 0:00:08]} 34. h3 {[%clk 0:00:03]}  b5 {[%clk 0:00:07]} 35. Qxd5 {[%clk 0:00:03]}  Rxb2 {[%clk 0:00:07]} 36. Rf6 {[%clk 0:00:03]}  Kg7 {[%clk 0:00:07]} 37. Rxa6 {[%clk 0:00:03]}  Rb1+ {[%clk 0:00:04]} 38. Kh2 {[%clk 0:00:03]}  Rc8 {[%clk 0:00:04]} 39. Ra7 {[%clk 0:00:04]}  Rf8 {[%clk 0:00:04]} 40. Rb7 {[%clk 0:00:04]}  Rf1 {[%clk 0:00:03]} 41. Rxb5 {[%clk 0:00:04]}  Rf5 {[%clk 0:00:03]} 42. Qc6 {[%clk 0:00:05]}  Rf2 {[%clk 0:00:02]} 43. Rb7 {[%clk 0:00:04]}  Rf6 {[%clk 0:00:01]} 44. Qc3 {[%clk 0:00:04]}  g5 {[%clk 0:00:02]} 45. Rb6 {[%clk 0:00:05]}  Rc8 {[%clk 0:00:02]} 46. Qxf6+ {[%clk 0:00:05]}  Kf8 {[%clk 0:00:02]} 47. Rb7 {[%clk 0:00:06]}  Ke8 {[%clk 0:00:00]} 48. Qxf7+ {[%clk 0:00:06]} 1-0


[Site "https://www.chess.com"]

[Event "Titled Tuesday Blitz August 15 Late 2023"]
[White "Osmonbekov, Talaibek"]
[Black "Arnold, Ken"]
[WhiteFideId "2017253"]
[BlackFideId "2056836"]
[WhiteElo "2216"]
[BlackElo "2398"]
[Result "0-1"]
[Round "7"]
[TimeControl "180+1"]
[Date "2023.08.15"]
[WhiteClock "0:00:00"]
[BlackClock "0:00:56"]
[Board "119"]

1. d4 {[%clk 0:03:00]}  d5 {[%clk 0:02:59]} 2. Nc3 {[%clk 0:03:00]}  Nf6 {[%clk 0:02:59]} 3. Bf4 {[%clk 0:03:01]}  e6 {[%clk 0:02:57]} 4. e3 {[%clk 0:03:01]}  Bb4 {[%clk 0:02:56]} 5. Bd3 {[%clk 0:03:00]}  a6 {[%clk 0:02:52]} 6. a3 {[%clk 0:02:50]}  Bd6 {[%clk 0:02:47]} 7. Nf3 {[%clk 0:02:48]}  b5 {[%clk 0:02:45]} 8. O-O {[%clk 0:02:46]}  Bb7 {[%clk 0:02:45]} 9. Ne5 {[%clk 0:02:42]}  Nbd7 {[%clk 0:02:43]} 10. b4 {[%clk 0:02:27]}  h6 {[%clk 0:02:40]} 11. Bg3 {[%clk 0:02:24]}  Nb6 {[%clk 0:02:36]} 12. f3 {[%clk 0:02:14]}  O-O {[%clk 0:02:34]} 13. e4 {[%clk 0:01:40]}  Nc4 {[%clk 0:02:33]} 14. Bxc4 {[%clk 0:01:20]}  dxc4 {[%clk 0:02:31]} 15. Qd2 {[%clk 0:01:13]}  c5 {[%clk 0:02:18]} 16. bxc5 {[%clk 0:00:51]}  Bxc5 {[%clk 0:02:16]} 17. Rfd1 {[%clk 0:00:51]}  Bb6 {[%clk 0:02:05]} 18. Kh1 {[%clk 0:00:49]}  Qe7 {[%clk 0:01:59]} 19. Bh4 {[%clk 0:00:41]}  Rfd8 {[%clk 0:01:54]} 20. Ne2 {[%clk 0:00:29]}  c3 {[%clk 0:01:33]} 21. Qxc3 {[%clk 0:00:17]}  g5 {[%clk 0:01:32]} 22. Bg3 {[%clk 0:00:13]}  Rac8 {[%clk 0:01:30]} 23. Qd3 {[%clk 0:00:13]}  Nh5 {[%clk 0:01:28]} 24. c3 {[%clk 0:00:12]}  Nxg3+ {[%clk 0:01:26]} 25. hxg3 {[%clk 0:00:12]}  Kg7 {[%clk 0:01:15]} 26. Qe3 {[%clk 0:00:11]}  f6 {[%clk 0:01:08]} 27. Nd3 {[%clk 0:00:10]}  e5 {[%clk 0:00:59]} 28. Nb4 {[%clk 0:00:00]}  Rc4 {[%clk 0:00:56]} 0-1


[Site "https://www.chess.com"]

[Event "Titled Tuesday Blitz August 15 Late 2023"]
[White "Hirneise, Jens"]
[Black "Schut, Han"]
[WhiteFideId "24614734"]
[BlackFideId "1005561"]
[WhiteElo "2464"]
[BlackElo "2236"]
[Result "1-0"]
[Round "7"]
[TimeControl "180+1"]
[Date "2023.08.15"]
[WhiteClock "0:00:02"]
[BlackClock "0:00:00"]
[Board "125"]

1. d4 {[%clk 0:03:00]}  Nf6 {[%clk 0:02:59]} 2. Bg5 {[%clk 0:03:00]}  d5 {[%clk 0:02:59]} 3. Bxf6 {[%clk 0:02:59]}  exf6 {[%clk 0:02:59]} 4. g3 {[%clk 0:03:00]}  Bd6 {[%clk 0:02:59]} 5. Bg2 {[%clk 0:03:00]}  c6 {[%clk 0:02:59]} 6. e3 {[%clk 0:03:00]}  O-O {[%clk 0:02:59]} 7. Ne2 {[%clk 0:03:00]}  Re8 {[%clk 0:02:59]} 8. Nd2 {[%clk 0:03:00]}  Qb6 {[%clk 0:02:55]} 9. b3 {[%clk 0:02:50]}  Bg4 {[%clk 0:02:54]} 10. h3 {[%clk 0:02:49]}  Bxe2 {[%clk 0:02:53]} 11. Qxe2 {[%clk 0:02:49]}  Nd7 {[%clk 0:02:48]} 12. c4 {[%clk 0:02:47]}  dxc4 {[%clk 0:02:33]} 13. Nxc4 {[%clk 0:02:47]}  Bb4+ {[%clk 0:02:32]} 14. Kf1 {[%clk 0:02:45]}  Qa6 {[%clk 0:02:17]} 15. h4 {[%clk 0:02:32]}  f5 {[%clk 0:01:38]} 16. h5 {[%clk 0:02:27]}  g6 {[%clk 0:01:35]} 17. hxg6 {[%clk 0:02:22]}  hxg6 {[%clk 0:01:32]} 18. Rd1 {[%clk 0:02:19]}  Rad8 {[%clk 0:01:16]} 19. Bf3 {[%clk 0:01:56]}  Nf6 {[%clk 0:01:08]} 20. Ne5 {[%clk 0:01:41]}  Qxe2+ {[%clk 0:01:02]} 21. Kxe2 {[%clk 0:01:34]}  Bd6 {[%clk 0:00:57]} 22. Nc4 {[%clk 0:01:27]}  Kg7 {[%clk 0:00:55]} 23. Kf1 {[%clk 0:01:15]}  Bc7 {[%clk 0:00:49]} 24. Kg2 {[%clk 0:01:14]}  Rh8 {[%clk 0:00:40]} 25. Rxh8 {[%clk 0:01:12]}  Rxh8 {[%clk 0:00:41]} 26. b4 {[%clk 0:01:03]}  a6 {[%clk 0:00:34]} 27. Na5 {[%clk 0:00:57]}  Bxa5 {[%clk 0:00:25]} 28. bxa5 {[%clk 0:00:58]}  Rd8 {[%clk 0:00:25]} 29. Rb1 {[%clk 0:00:57]}  Rd7 {[%clk 0:00:25]} 30. Kf1 {[%clk 0:00:53]}  Ne8 {[%clk 0:00:24]} 31. Be2 {[%clk 0:00:46]}  Nd6 {[%clk 0:00:23]} 32. Bd3 {[%clk 0:00:43]}  Kf6 {[%clk 0:00:22]} 33. a4 {[%clk 0:00:42]}  Ke6 {[%clk 0:00:21]} 34. Ke2 {[%clk 0:00:41]}  Ke7 {[%clk 0:00:18]} 35. Rh1 {[%clk 0:00:38]}  Rd8 {[%clk 0:00:14]} 36. Kd2 {[%clk 0:00:37]}  Kd7 {[%clk 0:00:12]} 37. Kc3 {[%clk 0:00:36]}  Kc7 {[%clk 0:00:12]} 38. Kb4 {[%clk 0:00:34]}  Ne8 {[%clk 0:00:08]} 39. Rh7 {[%clk 0:00:29]}  Rd7 {[%clk 0:00:09]} 40. Rh8 {[%clk 0:00:27]}  Nd6 {[%clk 0:00:07]} 41. Rh7 {[%clk 0:00:16]}  Re7 {[%clk 0:00:07]} 42. Kc3 {[%clk 0:00:13]}  Rd7 {[%clk 0:00:07]} 43. f3 {[%clk 0:00:12]}  Re7 {[%clk 0:00:07]} 44. Kd2 {[%clk 0:00:12]}  Kd7 {[%clk 0:00:07]} 45. Rh4 {[%clk 0:00:12]}  Kc7 {[%clk 0:00:08]} 46. g4 {[%clk 0:00:08]}  fxg4 {[%clk 0:00:07]} 47. Rxg4 {[%clk 0:00:08]}  Rd7 {[%clk 0:00:08]} 48. e4 {[%clk 0:00:07]}  Nc8 {[%clk 0:00:05]} 49. Kc3 {[%clk 0:00:07]}  Ne7 {[%clk 0:00:04]} 50. Bc4 {[%clk 0:00:07]}  Nc8 {[%clk 0:00:03]} 51. Rf4 {[%clk 0:00:07]}  Nd6 {[%clk 0:00:04]} 52. Bb3 {[%clk 0:00:05]}  f5 {[%clk 0:00:04]} 53. Rh4 {[%clk 0:00:04]}  fxe4 {[%clk 0:00:04]} 54. fxe4 {[%clk 0:00:05]}  Re7 {[%clk 0:00:04]} 55. e5 {[%clk 0:00:05]}  Nf5 {[%clk 0:00:04]} 56. Rg4 {[%clk 0:00:06]}  Rg7 {[%clk 0:00:04]} 57. Bc2 {[%clk 0:00:04]}  Ne7 {[%clk 0:00:04]} 58. Be4 {[%clk 0:00:04]}  Kd7 {[%clk 0:00:04]} 59. Kd3 {[%clk 0:00:04]}  Ke6 {[%clk 0:00:05]} 60. Ke3 {[%clk 0:00:03]}  Kf7 {[%clk 0:00:05]} 61. Kf4 {[%clk 0:00:03]}  Ng8 {[%clk 0:00:04]} 62. Kg5 {[%clk 0:00:03]}  Nh6 {[%clk 0:00:00]} 63. Kxh6 {[%clk 0:00:02]} 1-0


[Site "https://www.chess.com"]

[Event "Titled Tuesday Blitz August 15 Late 2023"]
[White "Bochnicka, Vladimir"]
[Black "Fernandez Bustamante, Leancy B."]
[WhiteFideId "14943450"]
[BlackFideId "3523870"]
[WhiteElo "2450"]
[BlackElo "2231"]
[Result "1-0"]
[Round "7"]
[TimeControl "180+1"]
[Date "2023.08.15"]
[WhiteClock "0:01:08"]
[BlackClock "0:00:00"]
[Board "126"]

1. e4 {[%clk 0:03:00]}  c5 {[%clk 0:03:00]} 2. Nf3 {[%clk 0:03:00]}  a6 {[%clk 0:03:00]} 3. c4 {[%clk 0:03:00]}  Nc6 {[%clk 0:02:59]} 4. Nc3 {[%clk 0:03:01]}  d6 {[%clk 0:02:58]} 5. d4 {[%clk 0:03:01]}  cxd4 {[%clk 0:02:58]} 6. Nxd4 {[%clk 0:03:02]}  Nxd4 {[%clk 0:02:58]} 7. Qxd4 {[%clk 0:03:02]}  Nf6 {[%clk 0:02:58]} 8. Be2 {[%clk 0:03:03]}  g6 {[%clk 0:02:58]} 9. Be3 {[%clk 0:03:03]}  Bg7 {[%clk 0:02:57]} 10. O-O {[%clk 0:03:04]}  O-O {[%clk 0:02:58]} 11. Qd2 {[%clk 0:03:04]}  Be6 {[%clk 0:02:56]} 12. b3 {[%clk 0:03:03]}  Qa5 {[%clk 0:02:56]} 13. Rac1 {[%clk 0:03:03]}  Rfc8 {[%clk 0:02:55]} 14. Rfd1 {[%clk 0:03:01]}  b5 {[%clk 0:02:54]} 15. cxb5 {[%clk 0:02:55]}  axb5 {[%clk 0:02:45]} 16. Nxb5 {[%clk 0:02:49]}  Qxd2 {[%clk 0:02:26]} 17. Rxc8+ {[%clk 0:02:45]}  Rxc8 {[%clk 0:02:22]} 18. Rxd2 {[%clk 0:02:42]}  Nxe4 {[%clk 0:02:22]} 19. Rd1 {[%clk 0:02:36]}  Ra8 {[%clk 0:02:08]} 20. Bf3 {[%clk 0:02:22]}  d5 {[%clk 0:01:36]} 21. a4 {[%clk 0:02:22]}  Be5 {[%clk 0:01:14]} 22. Bd4 {[%clk 0:02:13]}  Bxd4 {[%clk 0:01:06]} 23. Nxd4 {[%clk 0:02:14]}  Nc5 {[%clk 0:00:51]} 24. Rc1 {[%clk 0:02:05]}  Nd3 {[%clk 0:00:48]} 25. Rc7 {[%clk 0:02:01]}  Kf8 {[%clk 0:00:38]} 26. h3 {[%clk 0:02:01]}  Rb8 {[%clk 0:00:34]} 27. a5 {[%clk 0:01:59]}  Nb4 {[%clk 0:00:26]} 28. Be2 {[%clk 0:01:57]}  Bc8 {[%clk 0:00:23]} 29. Bb5 {[%clk 0:01:36]}  Ba6 {[%clk 0:00:21]} 30. Bxa6 {[%clk 0:01:29]}  Nxa6 {[%clk 0:00:21]} 31. Rc6 {[%clk 0:01:19]}  Nb4 {[%clk 0:00:18]} 32. Rb6 {[%clk 0:01:20]}  Rxb6 {[%clk 0:00:14]} 33. axb6 {[%clk 0:01:20]}  Na6 {[%clk 0:00:13]} 34. Nc6 {[%clk 0:01:21]}  Ke8 {[%clk 0:00:13]} 35. b7 {[%clk 0:01:21]}  Kd7 {[%clk 0:00:13]} 36. b8=Q {[%clk 0:01:21]}  Nxb8 {[%clk 0:00:13]} 37. Nxb8+ {[%clk 0:01:22]}  Kd6 {[%clk 0:00:09]} 38. Kf1 {[%clk 0:01:22]}  Kc5 {[%clk 0:00:10]} 39. Ke2 {[%clk 0:01:18]}  e6 {[%clk 0:00:09]} 40. Kd3 {[%clk 0:01:18]}  Kb4 {[%clk 0:00:09]} 41. Kc2 {[%clk 0:01:14]}  d4 {[%clk 0:00:07]} 42. Nc6+ {[%clk 0:01:14]}  Kc5 {[%clk 0:00:06]} 43. Ne5 {[%clk 0:01:15]}  f5 {[%clk 0:00:05]} 44. Kd3 {[%clk 0:01:13]}  Kd5 {[%clk 0:00:04]} 45. f4 {[%clk 0:01:10]}  g5 {[%clk 0:00:03]} 46. g3 {[%clk 0:01:10]}  h5 {[%clk 0:00:02]} 47. Nf3 {[%clk 0:01:10]}  g4 {[%clk 0:00:01]} 48. hxg4 {[%clk 0:01:09]}  fxg4 {[%clk 0:00:02]} 49. Nxd4 {[%clk 0:01:08]}  h4 {[%clk 0:00:01]} 50. gxh4 {[%clk 0:01:08]}  e5 {[%clk 0:00:00]} 51. fxe5 {[%clk 0:01:08]} 1-0


[Site "https://www.chess.com"]

[Event "Titled Tuesday Blitz August 15 Late 2023"]
[White "Jahnz, Fabian"]
[Black "Tqebuchava, Zurab"]
[WhiteFideId "4653300"]
[BlackFideId "13601113"]
[WhiteElo "2338"]
[BlackElo "2171"]
[Result "0-1"]
[Round "7"]
[TimeControl "180+1"]
[Date "2023.08.15"]
[WhiteClock "0:00:02"]
[BlackClock "0:00:25"]
[Board "127"]

1. e4 {[%clk 0:03:00]}  g6 {[%clk 0:02:59]} 2. d4 {[%clk 0:03:00]}  Bg7 {[%clk 0:03:00]} 3. Nc3 {[%clk 0:03:01]}  c6 {[%clk 0:03:00]} 4. Bf4 {[%clk 0:02:59]}  Qb6 {[%clk 0:03:00]} 5. Nf3 {[%clk 0:02:38]}  Qxb2 {[%clk 0:02:58]} 6. Bd2 {[%clk 0:02:37]}  Qb6 {[%clk 0:02:58]} 7. Be3 {[%clk 0:02:35]}  d6 {[%clk 0:02:55]} 8. Be2 {[%clk 0:02:36]}  Nf6 {[%clk 0:02:46]} 9. O-O {[%clk 0:02:36]}  O-O {[%clk 0:02:46]} 10. Rb1 {[%clk 0:02:30]}  Qa5 {[%clk 0:02:40]} 11. Qd3 {[%clk 0:02:26]}  Qc7 {[%clk 0:02:34]} 12. a4 {[%clk 0:02:23]}  a5 {[%clk 0:02:31]} 13. d5 {[%clk 0:02:10]}  Bg4 {[%clk 0:02:20]} 14. h3 {[%clk 0:02:08]}  Bxf3 {[%clk 0:02:18]} 15. Bxf3 {[%clk 0:02:09]}  Nbd7 {[%clk 0:02:16]} 16. Bf4 {[%clk 0:01:37]}  cxd5 {[%clk 0:02:08]} 17. exd5 {[%clk 0:01:31]}  Rfc8 {[%clk 0:01:58]} 18. Ne2 {[%clk 0:01:07]}  Nc5 {[%clk 0:01:36]} 19. Qb5 {[%clk 0:01:00]}  Qd7 {[%clk 0:01:31]} 20. Qxd7 {[%clk 0:00:50]}  Nfxd7 {[%clk 0:01:30]} 21. Rfe1 {[%clk 0:00:43]}  Nxa4 {[%clk 0:01:28]} 22. Rxb7 {[%clk 0:00:42]}  Nac5 {[%clk 0:01:24]} 23. Rb5 {[%clk 0:00:38]}  a4 {[%clk 0:01:20]} 24. Nc1 {[%clk 0:00:38]}  Bf6 {[%clk 0:01:13]} 25. Na2 {[%clk 0:00:37]}  a3 {[%clk 0:01:12]} 26. Bg4 {[%clk 0:00:35]}  Rcb8 {[%clk 0:01:05]} 27. Reb1 {[%clk 0:00:34]}  Bb2 {[%clk 0:00:54]} 28. Rxb8+ {[%clk 0:00:22]}  Rxb8 {[%clk 0:00:55]} 29. Be3 {[%clk 0:00:19]}  h5 {[%clk 0:00:40]} 30. Be2 {[%clk 0:00:18]}  Na4 {[%clk 0:00:37]} 31. Bc4 {[%clk 0:00:16]}  Ne5 {[%clk 0:00:32]} 32. Bb3 {[%clk 0:00:15]}  Nc3 {[%clk 0:00:29]} 33. Nxc3 {[%clk 0:00:15]}  Bxc3 {[%clk 0:00:29]} 34. Kf1 {[%clk 0:00:14]}  Rxb3 {[%clk 0:00:25]} 35. Rxb3 {[%clk 0:00:09]}  a2 {[%clk 0:00:25]} 36. Rxc3 {[%clk 0:00:02]}  a1=Q+ {[%clk 0:00:25]} 0-1


[Site "https://www.chess.com"]

[Event "Titled Tuesday Blitz August 15 Late 2023"]
[White "Burke, Paul"]
[Black "Alexikov, Alexander"]
[WhiteFideId "2605767"]
[BlackFideId "14103958"]
[WhiteElo "1842"]
[BlackElo "2217"]
[Result "0-1"]
[Round "7"]
[TimeControl "180+1"]
[Date "2023.08.15"]
[WhiteClock "0:00:00"]
[BlackClock "0:01:19"]
[Board "138"]

1. e4 {[%clk 0:02:18]}  c5 {[%clk 0:02:59]} 2. d4 {[%clk 0:02:18]}  cxd4 {[%clk 0:02:57]} 3. c3 {[%clk 0:02:18]}  Nf6 {[%clk 0:02:57]} 4. e5 {[%clk 0:02:18]}  Nd5 {[%clk 0:02:56]} 5. Nf3 {[%clk 0:02:17]}  d6 {[%clk 0:02:56]} 6. cxd4 {[%clk 0:02:16]}  Nc6 {[%clk 0:02:54]} 7. exd6 {[%clk 0:02:08]}  Qxd6 {[%clk 0:02:44]} 8. Be2 {[%clk 0:02:05]}  Bg4 {[%clk 0:02:39]} 9. O-O {[%clk 0:02:05]}  e6 {[%clk 0:02:38]} 10. Nc3 {[%clk 0:02:02]}  Rd8 {[%clk 0:02:33]} 11. Ne4 {[%clk 0:02:02]}  Qb8 {[%clk 0:02:30]} 12. Qa4 {[%clk 0:01:55]}  Be7 {[%clk 0:02:23]} 13. h3 {[%clk 0:01:31]}  Bxf3 {[%clk 0:02:10]} 14. Bxf3 {[%clk 0:01:28]}  Nb6 {[%clk 0:02:10]} 15. Qb5 {[%clk 0:01:25]}  O-O {[%clk 0:02:00]} 16. Be3 {[%clk 0:01:13]}  Nxd4 {[%clk 0:01:56]} 17. Bxd4 {[%clk 0:01:12]}  Rxd4 {[%clk 0:01:56]} 18. Rfd1 {[%clk 0:00:52]}  Rfd8 {[%clk 0:01:54]} 19. Rxd4 {[%clk 0:00:49]}  Rxd4 {[%clk 0:01:53]} 20. Qe2 {[%clk 0:00:35]}  Qd8 {[%clk 0:01:47]} 21. Ng3 {[%clk 0:00:27]}  Nd5 {[%clk 0:01:41]} 22. Qb5 {[%clk 0:00:13]}  Rb4 {[%clk 0:01:30]} 23. Qe2 {[%clk 0:00:00]}  Bf6 {[%clk 0:01:19]} 0-1


[Site "https://www.chess.com"]

[Event "Titled Tuesday Blitz August 15 Late 2023"]
[White "cthake"]
[Black "Milovic, Aleksandra"]
[BlackFideId "933988"]
[WhiteElo "1822"]
[BlackElo "2090"]
[Result "1-0"]
[Round "7"]
[TimeControl "180+1"]
[Date "2023.08.15"]
[WhiteClock "0:00:22"]
[BlackClock "0:00:06"]
[Board "139"]

1. e4 {[%clk 0:02:58]}  e6 {[%clk 0:02:55]} 2. d3 {[%clk 0:02:53]}  d5 {[%clk 0:02:55]} 3. Nd2 {[%clk 0:02:52]}  Nf6 {[%clk 0:02:53]} 4. g3 {[%clk 0:02:48]}  c5 {[%clk 0:02:52]} 5. Bg2 {[%clk 0:02:47]}  Nc6 {[%clk 0:02:49]} 6. h4 {[%clk 0:02:01]}  Be7 {[%clk 0:02:44]} 7. Nh3 {[%clk 0:01:59]}  h6 {[%clk 0:02:31]} 8. O-O {[%clk 0:01:56]}  O-O {[%clk 0:02:29]} 9. Re1 {[%clk 0:01:54]}  Qc7 {[%clk 0:02:26]} 10. Nf1 {[%clk 0:01:35]}  dxe4 {[%clk 0:02:18]} 11. dxe4 {[%clk 0:01:34]}  Rd8 {[%clk 0:02:04]} 12. Bd2 {[%clk 0:01:27]}  e5 {[%clk 0:01:59]} 13. c3 {[%clk 0:01:26]}  Be6 {[%clk 0:01:31]} 14. Kh2 {[%clk 0:01:20]}  Bg4 {[%clk 0:01:01]} 15. f3 {[%clk 0:01:09]}  Be6 {[%clk 0:00:58]} 16. Qe2 {[%clk 0:01:07]}  Nh7 {[%clk 0:00:44]} 17. Rad1 {[%clk 0:01:05]}  f5 {[%clk 0:00:36]} 18. exf5 {[%clk 0:01:01]}  Bxf5 {[%clk 0:00:37]} 19. Bc1 {[%clk 0:00:40]}  Bf6 {[%clk 0:00:18]} 20. Ne3 {[%clk 0:00:40]}  Bxh3 {[%clk 0:00:18]} 21. Bxh3 {[%clk 0:00:40]}  e4 {[%clk 0:00:18]} 22. f4 {[%clk 0:00:36]}  Kh8 {[%clk 0:00:17]} 23. Bf5 {[%clk 0:00:33]}  Nf8 {[%clk 0:00:17]} 24. Rxd8 {[%clk 0:00:30]}  Rxd8 {[%clk 0:00:16]} 25. Rd1 {[%clk 0:00:30]}  Rxd1 {[%clk 0:00:16]} 26. Qxd1 {[%clk 0:00:30]}  Bxh4 {[%clk 0:00:15]} 27. Nd5 {[%clk 0:00:27]}  Qd6 {[%clk 0:00:14]} 28. gxh4 {[%clk 0:00:27]}  Ne7 {[%clk 0:00:13]} 29. Bxe4 {[%clk 0:00:24]}  Nxd5 {[%clk 0:00:11]} 30. Qxd5 {[%clk 0:00:23]}  Qxf4+ {[%clk 0:00:11]} 31. Bxf4 {[%clk 0:00:23]}  Ne6 {[%clk 0:00:07]} 32. Qxe6 {[%clk 0:00:22]}  b5 {[%clk 0:00:06]} 33. Qe8# {[%clk 0:00:22]} 1-0


[Site "https://www.chess.com"]

[Event "Titled Tuesday Blitz August 15 Late 2023"]
[White "Pein, Jonathan"]
[Black "Maluco_do_Natal_00"]
[WhiteFideId "417092"]
[WhiteElo "2414"]
[BlackElo "2067"]
[Result "1-0"]
[Round "7"]
[TimeControl "180+1"]
[Date "2023.08.15"]
[WhiteClock "0:01:30"]
[BlackClock "0:00:05"]
[Board "140"]

1. e4 {[%clk 0:03:00]}  c5 {[%clk 0:02:58]} 2. Ne2 {[%clk 0:02:55]}  Nc6 {[%clk 0:02:57]} 3. d4 {[%clk 0:02:56]}  cxd4 {[%clk 0:02:58]} 4. Nxd4 {[%clk 0:02:57]}  Nf6 {[%clk 0:02:58]} 5. Nc3 {[%clk 0:02:57]}  e5 {[%clk 0:02:59]} 6. Nf5 {[%clk 0:02:53]}  d5 {[%clk 0:02:59]} 7. Nxd5 {[%clk 0:02:46]}  Nxd5 {[%clk 0:02:56]} 8. exd5 {[%clk 0:02:40]}  Bxf5 {[%clk 0:02:55]} 9. dxc6 {[%clk 0:02:40]}  Qxd1+ {[%clk 0:02:55]} 10. Kxd1 {[%clk 0:02:41]}  Rd8+ {[%clk 0:02:47]} 11. Bd3 {[%clk 0:02:31]}  bxc6 {[%clk 0:02:37]} 12. Ke2 {[%clk 0:02:27]}  Bxd3+ {[%clk 0:02:28]} 13. cxd3 {[%clk 0:02:28]}  Bc5 {[%clk 0:02:20]} 14. Be3 {[%clk 0:02:27]}  Bd4 {[%clk 0:02:19]} 15. Rac1 {[%clk 0:02:24]}  Kd7 {[%clk 0:02:16]} 16. b3 {[%clk 0:02:21]}  Kd6 {[%clk 0:02:15]} 17. Rc4 {[%clk 0:02:21]}  c5 {[%clk 0:02:14]} 18. Rhc1 {[%clk 0:02:16]}  Rhe8 {[%clk 0:01:46]} 19. Kd2 {[%clk 0:02:15]}  Rc8 {[%clk 0:01:40]} 20. b4 {[%clk 0:02:15]}  Kd5 {[%clk 0:01:12]} 21. bxc5 {[%clk 0:02:11]}  Rc6 {[%clk 0:01:09]} 22. h4 {[%clk 0:01:55]}  Rec8 {[%clk 0:01:08]} 23. Bxd4 {[%clk 0:01:53]}  exd4 {[%clk 0:01:07]} 24. Ra4 {[%clk 0:01:52]}  R8c7 {[%clk 0:01:03]} 25. Rcc4 {[%clk 0:01:52]}  Rxc5 {[%clk 0:00:59]} 26. Rxd4+ {[%clk 0:01:52]}  Ke6 {[%clk 0:00:56]} 27. Rac4 {[%clk 0:01:48]}  f5 {[%clk 0:00:52]} 28. Kc3 {[%clk 0:01:41]}  h6 {[%clk 0:00:48]} 29. h5 {[%clk 0:01:41]}  Kf6 {[%clk 0:00:42]} 30. f4 {[%clk 0:01:41]}  R7c6 {[%clk 0:00:20]} 31. Rd7 {[%clk 0:01:36]}  a6 {[%clk 0:00:15]} 32. Kd4 {[%clk 0:01:36]}  Rxc4+ {[%clk 0:00:12]} 33. dxc4 {[%clk 0:01:37]}  g5 {[%clk 0:00:13]} 34. hxg6 {[%clk 0:01:36]}  Kxg6 {[%clk 0:00:12]} 35. Kd5 {[%clk 0:01:36]}  Rb6 {[%clk 0:00:11]} 36. c5 {[%clk 0:01:36]}  Rb1 {[%clk 0:00:11]} 37. c6 {[%clk 0:01:36]}  Rd1+ {[%clk 0:00:10]} 38. Ke6 {[%clk 0:01:35]}  Re1+ {[%clk 0:00:11]} 39. Kd6 {[%clk 0:01:34]}  Rd1+ {[%clk 0:00:11]} 40. Ke7 {[%clk 0:01:35]}  Rc1 {[%clk 0:00:11]} 41. c7 {[%clk 0:01:35]}  Kh5 {[%clk 0:00:10]} 42. Kd8 {[%clk 0:01:34]}  Kg4 {[%clk 0:00:10]} 43. c8=Q {[%clk 0:01:29]}  Rxc8+ {[%clk 0:00:10]} 44. Kxc8 {[%clk 0:01:30]}  Kxf4 {[%clk 0:00:11]} 45. Rd6 {[%clk 0:01:30]}  h5 {[%clk 0:00:10]} 46. Rxa6 {[%clk 0:01:29]}  Kg3 {[%clk 0:00:11]} 47. Rg6+ {[%clk 0:01:29]}  Kf4 {[%clk 0:00:09]} 48. a4 {[%clk 0:01:30]}  h4 {[%clk 0:00:05]} 49. a5 {[%clk 0:01:30]} 1-0


[Site "https://www.chess.com"]